bitfinex/quotes_ETHUSD_20250131
["timestamp","ask_amount","ask_price","bid_price","bid_amount"]
[1738292863092,3.20895731,3240.4,3239.9,0.5575]
[1738292863519,3.1247378,3240.3,3239.9,0.0075]
[1738292863832,0.0385778,3240.3,3240.0,0.0075]
[1738292864033,3.08587,3240.6,3240.0,0.0075]
[1738292864034,0.12298255,3240.2,3240.0,0.0075]
[1738292864328,3.12466781,3240.4,3240.0,0.0075]
[1738292864329,3.08615,3240.3,3240.0,0.0075]
[1738292864535,3.08587,3240.6,3240.0,0.0075]
[1738292864741,3.08587,3240.6,3240.0,3.09391]
[1738292864894,3.08587,3240.6,3240.1,0.0075]
[1738292865231,3.08606,3240.4,3240.1,0.0075]
[1738292865406,3.08606,3240.4,3240.0,0.0075]
[1738292865602,0.12297168,3240.3,3240.0,0.0075]
[1738292866437,1.30921046,3240.3,3239.6,0.775]
[1738292866588,1.30921046,3240.3,3239.7,0.565]
[1738292866589,3.08637,3240.1,3239.7,0.565]
[1738292866794,3.94767783,3240.3,3239.7,0.565]
[1738292867114,0.12295356,3240.2,3239.7,0.565]
[1738292867315,3.20923356,3240.2,3239.7,0.565]
[1738292867549,0.03858033,3240.1,3239.7,0.565]
[1738292867716,3.24781386,3240.2,3239.7,0.565]
[1738292867920,3.1248603,3240.2,3239.7,0.565]
[1738292868252,3.08661,3239.8,3239.2,3.83777]
[1738292868548,0.16150317,3239.7,3239.2,0.7506]
[1738292868731,0.16150317,3239.7,3239.3,0.015]
[1738292869353,3.08681,3239.6,3239.3,0.0075]
[1738292869652,0.12282306,3239.5,3239.3,0.0075]
[1738292870454,3.08699,3239.4,3238.8,0.8212]
[1738292870650,3.08724,3239.2,3238.8,0.8212]
[1738292871145,0.12258741,3239.1,3238.8,0.8212]
[1738292871550,3.24847089,3239.1,3238.5,0.7589]
[1738292871756,3.08754,3238.9,3238.5,0.7589]
[1738292871906,3.08754,3238.9,3238.6,0.0075]
[1738292872124,0.12244602,3238.8,3238.6,0.0075]
[1738292872324,3.08737,3239.0,3238.6,0.0075]
[1738292872962,0.12219944,3238.9,3238.6,0.0075]
[1738292873119,0.16079603,3238.9,3238.6,0.0075]
[1738292873319,0.12219944,3238.9,3238.6,0.0075]
[1738292873544,0.11757002,3238.9,3238.6,0.0075]
[1738292874320,3.08737,3239.0,3238.6,0.0075]
[1738292874724,0.12197969,3238.9,3238.6,0.0075]
[1738292875166,0.12197969,3238.9,3238.6,0.950433]
[1738292875672,3.08716,3239.3,3238.6,4.038173]
[1738292875826,0.12193252,3238.8,3238.6,3.65274]
[1738292876024,3.08716,3239.3,3238.6,3.65274]
[1738292876265,3.20911252,3239.2,3238.6,3.65274]
[1738292876442,3.20911252,3239.2,3238.6,0.565]
[1738292876641,0.0385936,3239.1,3238.6,0.015]
[1738292877370,0.12193252,3239.0,3238.6,0.015]
[1738292878648,3.20930252,3239.0,3238.6,0.015]
[1738292879673,3.08757,3238.8,3238.3,0.767]
[1738292879863,3.20930252,3239.0,3238.3,3.85503]
[1738292879864,3.24789912,3239.0,3238.3,3.85503]
[1738292880058,3.1259666,3239.0,3238.4,0.5575]
[1738292880376,0.12191075,3238.9,3238.4,0.5575]
[1738292880567,3.20937075,3238.9,3238.4,0.5575]
[1738292881076,0.12191075,3238.9,3238.4,3.64542]
[1738292881377,3.1259866,3239.0,3238.4,0.5575]
[1738292881751,0.12189987,3238.9,3238.4,0.5575]
[1738292882342,3.08782,3238.6,3238.0,0.7596]
[1738292882569,3.08782,3238.6,3238.0,1.12151385]
[1738292882763,0.12191076,3238.5,3238.0,1.12151385]
[1738292883181,3.20976076,3238.5,3238.1,0.0075]
[1738292883482,0.12191076,3238.5,3238.1,0.0075]
[1738292884377,3.08794,3238.4,3237.7,0.7683]
[1738292884552,3.0881,3238.3,3237.7,0.7683]
[1738292884876,3.08814,3238.2,3237.8,0.0075]
[1738292885082,0.62978751,3238.1,3237.4,0.7852]
[1738292885373,3.08828,3238.1,3237.5,0.0075]
[1738292885560,0.1215516,3238.0,3237.5,0.0075]
[1738292885763,3.2098816,3238.0,3237.5,0.0075]
[1738292886082,0.1215516,3238.0,3237.5,0.0075]
[1738292886279,3.2098816,3238.0,3237.5,0.0075]
[1738292886436,3.96028154,3238.0,3237.4,0.0075]
[1738292886778,3.24849038,3238.0,3237.4,0.0075]
[1738292887080,3.08876,3237.6,3237.1,0.7608]
[1738292887282,3.08892,3237.4,3237.1,0.7608]
[1738292887584,3.24878197,3237.5,3237.1,0.7608]
[1738292887879,3.12750251,3237.5,3237.2,0.0075]
[1738292888077,0.12108347,3237.4,3237.2,0.0075]
[1738292888277,0.12108347,3237.4,3237.1,0.0125]
[1738292888491,0.12108347,3237.4,3237.3,0.0075]
[1738292888642,0.03861128,3237.8,3237.2,0.0075]
[1738292888841,3.08893,3237.4,3237.1,0.005]
[1738292889151,3.08893,3237.4,3237.1,0.0125]
[1738292889152,0.15946527,3237.3,3237.1,0.0125]
[1738292889673,0.12085113,3237.3,3237.1,0.0125]
[1738292890179,1.54342653,3237.3,3237.1,0.005]
[1738292890479,3.08908,3237.2,3237.1,0.005]
[1738292890947,0.12080759,3237.2,3237.1,0.005]
[1738292891280,0.7541,3237.3,3237.1,0.005]
[1738292891576,0.12080759,3237.2,3237.1,0.0125]
[1738292891886,3.8839,3237.9,3237.1,0.8008]
[1738292892178,0.12073134,3237.2,3237.1,0.8008]
[1738292892350,3.8839,3237.9,3237.1,0.8008]
[1738292892351,3.08871,3237.6,3237.1,0.8008]
[1738292892551,0.03861308,3237.5,3237.1,0.005]
[1738292892883,3.089,3237.3,3237.1,0.005]
[1738292893046,3.8843,3237.4,3237.1,0.005]
[1738292893047,0.91608051,3237.4,3237.1,0.005]
[1738292893244,0.03861605,3237.3,3237.1,0.005]
[1738292893443,6.20978591,3237.2,3237.1,0.005]
[1738292893650,6.24840635,3237.2,3237.1,0.005]
[1738292893852,7.26169299,3237.2,3237.1,0.005]
[1738292894046,7.22307255,3237.2,3237.1,0.005]
[1738292894469,8.01847255,3237.2,3237.1,0.005]
[1738292895894,4.00518591,3237.2,3237.1,0.005]
[1738292896376,4.04380657,3237.2,3237.1,0.005]
[1738292900271,7.04380657,3237.2,3237.1,0.005]
[1738292900489,7.00518591,3237.2,3237.1,0.005]
[1738292902496,3.91610591,3237.2,3237.1,0.005]
[1738292902671,4.00518591,3237.2,3237.1,0.005]
[1738292903001,7.04380568,3237.2,3237.1,0.005]
[1738292903166,7.00518591,3237.2,3237.1,0.005]
[1738292903711,6.20978591,3237.2,3237.1,0.005]
[1738292904196,6.24840552,3237.2,3237.1,0.005]
[1738292904351,7.99019011,3237.2,3237.1,0.005]
[1738292904715,7.9515705,3237.2,3237.1,0.005]
[1738292909788,8.5689483,3237.2,3237.1,0.005]
[1738292910321,3.85514,3236.2,3236.1,0.1668953]
[1738292910503,3.89377462,3236.2,3236.1,0.1668953]
[1738292910825,3.89377462,3236.2,3233.9,3.09221]
[1738292910826,3.09139,3234.8,3233.9,3.09221]
[1738292910990,3.09165,3234.6,3233.8,0.7695]
[1738292911327,6.25006547,3234.5,3233.9,0.0075]
[1738292911493,0.15839547,3234.5,3233.9,0.0075]
[1738292911688,3.25010547,3234.5,3233.8,0.7695]
[1738292911891,0.7756677,3234.5,3233.8,0.7695]
[1738292912086,0.11974325,3234.5,3233.9,0.015]
[1738292912289,0.11974325,3234.5,3234.1,0.0075]
[1738292912493,3.09155,3234.7,3234.1,0.0075]
[1738292912713,3.09155,3234.7,3234.0,0.7695]
[1738292912714,0.119009,3234.4,3234.0,0.7695]
[1738292912918,3.09196,3234.2,3233.2,0.7695]
[1738292913105,3.09196,3234.2,3233.3,0.386248]
[1738292913309,3.24513492,3234.1,3233.4,0.0075]
[1738292913621,3.09234,3233.8,3233.2,0.7695]
[1738292913933,0.11439173,3233.7,3233.5,0.015]
[1738292914234,0.11439173,3233.7,3233.5,0.0075]
[1738292914528,0.11435534,3233.6,3233.5,4.44192]
[1738292914712,3.09145,3234.8,3233.8,0.7843]
[1738292915018,0.823,3235.7,3234.1,0.7843]
[1738292915177,0.11011999,3234.7,3234.3,0.7843]
[1738292915379,3.09148,3234.7,3234.4,0.0075]
[1738292915719,0.11017839,3234.6,3234.4,0.0075]
[1738292916279,0.14882446,3234.6,3234.4,0.0075]
[1738292916701,0.14882447,3234.6,3234.4,0.0075]
[1738292917021,3.09166,3234.5,3234.4,0.0075]
[1738292917316,0.73956863,3234.5,3233.6,0.7694]
[1738292917622,3.09197,3234.2,3233.7,0.015]
[1738292917830,0.11023679,3234.5,3233.7,0.015]
[1738292918122,3.09138,3234.8,3233.9,0.0075]
[1738292918296,3.09203,3234.2,3233.9,0.0075]
[1738292918698,0.11028059,3234.1,3233.9,3.65723]
[1738292918931,3.09159,3234.6,3234.1,0.5575]
[1738292919289,3.09176,3234.4,3234.1,0.5575]
[1738292919503,3.09159,3234.6,3234.1,0.5575]
[1738292919720,3.09143,3234.8,3234.2,0.0075]
[1738292919923,3.09111,3235.1,3234.4,0.565]
[1738292920210,3.09079,3235.5,3234.8,0.015]
[1738292920514,3.09089,3235.4,3235.1,0.0075]
[1738292921299,3.09042,3235.8,3235.1,0.0075]
[1738292921700,3.09042,3235.8,3235.1,3.09852]
[1738292921946,3.09016,3236.1,3235.3,0.565]
[1738292922113,0.03863007,3236.0,3235.4,0.7816]
[1738292922313,3.09064,3235.6,3235.4,0.7816]
[1738292922517,3.09092,3235.3,3234.3,0.7816]
[1738292922716,3.09119,3235.0,3234.3,0.7816]
[1738292923014,3.09109,3235.1,3234.7,0.0075]
[1738292923216,3.09132,3234.9,3234.7,0.0075]
[1738292923416,3.09119,3235.0,3234.7,0.0075]
[1738292924053,0.8073,3236.0,3234.7,0.0075]
[1738292924054,3.09114,3235.1,3234.7,0.0075]
[1738292924208,3.09114,3235.1,3234.7,0.015]
[1738292924541,3.09095,3235.3,3234.7,0.565]
[1738292924708,3.09082,3235.4,3234.7,0.565]
[1738292924901,3.0911,3235.1,3234.7,0.565]
[1738292926048,0.10665735,3235.0,3234.7,0.565]
[1738292926949,0.10665735,3235.0,3234.9,0.5575]
[1738292927108,3.0906,3235.7,3235.2,0.0075]
[1738292927418,0.10675231,3235.6,3235.2,0.0075]
[1738292928420,3.19737231,3235.6,3235.2,0.0075]
[1738292928636,0.03863368,3235.5,3234.8,0.8025]
[1738292928806,3.09128,3234.9,3234.8,0.8025]
[1738292929010,3.09142,3234.8,3234.3,0.7522]
[1738292929211,3.09149,3234.7,3234.3,0.7522]
[1738292929405,3.19841741,3234.7,3234.3,0.7522]
[1738292929721,0.03864552,3234.6,3234.3,0.7522]
[1738292929920,3.09165,3234.6,3233.9,0.7623]
[1738292930119,3.09165,3234.6,3234.0,3.64964]
[1738292930321,0.1068508,3234.5,3234.0,3.64964]
[1738292930646,3.09168,3234.5,3234.0,0.0075]
[1738292930982,0.1068508,3234.4,3234.0,0.0075]
[1738292931110,3.1986408,3234.4,3234.0,0.0075]
[1738292931313,0.1068508,3234.4,3234.0,0.0075]
[1738292931549,0.1068508,3234.4,3234.0,0.5575]
[1738292931842,0.1068508,3234.3,3234.0,0.5575]
[1738292932045,3.09148,3234.7,3234.0,0.5575]
[1738292932249,3.09017,3236.1,3234.3,0.0075]
[1738292932250,0.1068508,3234.6,3234.3,0.0075]
[1738292932554,3.09161,3234.6,3234.3,0.0075]
[1738292932907,0.1068508,3234.5,3234.3,0.0075]
[1738292934043,0.1068508,3234.4,3234.3,0.0075]
[1738292934211,3.09148,3234.7,3234.3,0.0075]
[1738292934413,0.1068508,3234.6,3234.3,0.0075]
[1738292935262,3.09158,3234.6,3234.3,0.0075]
[1738292935470,0.1068508,3234.5,3234.3,0.0075]
[1738292935863,3.0914,3234.8,3234.3,0.0075]
[1738292936171,3.09121,3235.0,3234.5,0.5575]
[1738292936172,0.1068508,3234.7,3234.5,0.5575]
[1738292936542,3.09121,3235.0,3234.5,0.5575]
[1738292936747,0.1068508,3234.6,3234.3,3.64185]
[1738292936929,3.09136,3234.9,3234.3,0.55]
[1738292937133,0.10672309,3234.5,3234.4,0.0075]
[1738292937335,3.09138,3234.8,3234.4,0.0075]
[1738292937558,0.10672309,3234.5,3234.4,0.0075]
[1738292937756,3.12983521,3235.0,3234.4,0.0075]
[1738292937757,3.09119,3235.0,3234.4,0.0075]
[1738292938077,3.400309,3235.0,3234.4,0.0075]
[1738292938276,0.10672309,3234.9,3234.6,0.746517]
[1738292938518,3.09103,3235.2,3234.6,0.746517]
[1738292938641,0.10651146,3234.8,3234.6,0.746517]
[1738292938842,3.09103,3235.2,3234.6,0.746517]
[1738292939041,3.19762146,3235.1,3234.6,0.746517]
[1738292939555,0.10651146,3235.1,3234.6,0.746517]
[1738292939977,3.19764146,3235.1,3234.6,0.746517]
[1738292940343,0.10651146,3235.1,3234.8,0.0075]
[1738292940773,3.09045,3235.8,3235.0,0.0075]
[1738292940969,0.390615,3235.7,3235.0,0.0075]
[1738292941286,3.09068,3235.6,3235.0,0.0075]
[1738292941454,3.09068,3235.6,3235.1,0.7755]
[1738292941647,0.10655525,3235.5,3235.1,0.7755]
[1738292942181,0.10655525,3235.5,3235.2,0.565]
[1738292942594,3.12915408,3235.7,3235.2,0.565]
[1738292942797,0.10679245,3235.4,3235.2,0.565]
[1738292943082,0.10679245,3235.3,3235.2,0.565]
[1738292943290,3.0,3236.0,3235.4,0.0075]
[1738292943510,0.71580845,3235.9,3235.3,0.0075]
[1738292943672,3.09056,3235.7,3235.3,0.0075]
[1738292943850,3.23609034,3235.6,3235.3,0.0075]
[1738292944385,0.14547034,3235.6,3235.3,0.0075]
[1738292944547,0.10683622,3235.6,3235.3,0.0075]
[1738292944890,3.09033,3235.9,3235.3,3.09839]
[1738292945049,0.10683622,3235.8,3235.3,0.0075]
[1738292945594,3.09013,3236.1,3235.5,0.0075]
[1738292945595,3.09033,3235.9,3235.5,0.0075]
[1738292945760,3.09033,3235.9,3235.3,0.0075]
[1738292945761,0.10703688,3235.7,3235.3,0.0075]
[1738292945964,3.08994,3236.3,3235.3,0.825]
[1738292946210,3.12857015,3236.3,3235.5,0.565]
[1738292946355,3.0901,3236.2,3235.7,0.565]
[1738292946551,3.78769701,3236.2,3235.7,0.565]
[1738292947099,0.03862895,3236.1,3235.7,0.565]
[1738292947670,3.78769701,3236.2,3235.7,0.565]
[1738292949086,3.7573,3236.4,3235.6,0.5575]
[1738292949393,3.0,3236.6,3235.4,0.565]
[1738292949394,3.84219,3236.9,3236.3,3.08991]
[1738292949688,3.84219,3236.9,3236.1,0.8052]
[1738292949689,3.08958,3236.7,3236.1,3.89528]
[1738292949992,0.03862155,3236.8,3236.1,3.89528]
[1738292949993,3.0,3236.8,3236.2,3.65503]
[1738292950193,0.7528,3236.9,3236.2,3.65503]
[1738292950494,3.84199,3237.1,3236.5,0.0075]
[1738292950649,6.12795004,3237.0,3236.5,0.565]
[1738292951078,3.03862004,3237.0,3236.5,0.565]
[1738292951259,3.03862004,3237.0,3236.3,0.55]
[1738292951464,0.03862004,3237.0,3236.3,0.55]
[1738292951687,3.08955,3236.8,3236.3,0.55]
[1738292951890,3.08955,3236.8,3236.4,0.015]
[1738292952097,3.1281712,3236.8,3236.4,0.015]
[1738292952252,3.08955,3236.8,3236.3,0.015]
[1738292952755,0.0386212,3236.7,3236.3,0.015]
[1738292953085,0.0386212,3236.7,3236.1,0.8052]
[1738292953086,3.09009,3236.2,3235.7,0.8052]
[1738292953286,3.09009,3236.2,3235.8,0.565]
[1738292955410,3.84246,3236.6,3235.8,0.565]
[1738292955716,3.08976,3236.5,3236.0,0.565]
[1738292956097,0.10757662,3236.4,3235.9,0.565]
[1738292956409,3.12847551,3236.4,3235.9,0.565]
[1738292956609,0.10758027,3236.3,3235.9,0.565]
[1738292957697,0.10758027,3236.3,3236.1,0.0075]
[1738292958009,3.08977,3236.5,3236.1,0.0075]
[1738292958213,0.1076532,3236.2,3236.1,0.0075]
[1738292958721,0.693226,3236.4,3236.1,0.0075]
[1738292958917,0.1076532,3236.2,3236.1,0.0075]
[1738292959210,0.693226,3236.4,3236.1,0.0075]
[1738292959415,0.1076532,3236.2,3236.1,0.0075]
[1738292959713,3.0893,3237.0,3236.3,1.3816]
[1738292959922,3.12807073,3236.9,3236.3,1.3816]
[1738292960084,0.03862073,3236.9,3236.0,0.8166]
[1738292960283,3.0897,3236.6,3236.1,0.565]
[1738292960479,3.08926,3237.1,3236.1,0.565]
[1738292960681,3.0,3237.0,3236.4,0.565]
[1738292960920,3.08937,3236.9,3236.4,0.565]
[1738292961430,3.03862074,3237.0,3236.3,3.08992]
[1738292961431,3.12809074,3236.8,3236.3,0.0075]
[1738292962286,3.08968,3236.6,3236.3,0.0075]
[1738292963417,0.391656,3237.1,3236.3,0.0075]
[1738292963418,0.03862266,3237.0,3236.3,0.0075]
[1738292963617,3.08891,3237.4,3236.7,0.0075]
[1738292963777,3.08902,3237.3,3236.9,0.0075]
[1738292964222,3.12773629,3237.2,3236.9,0.0075]
[1738292964389,3.74953411,3237.1,3236.4,3.88005]
[1738292964601,3.08942,3236.9,3236.4,0.7902]
[1738292964912,3.08942,3236.9,3236.5,0.0075]
[1738292965515,3.08963,3236.7,3236.1,3.89462]
[1738292965716,3.79431706,3236.7,3236.1,3.89462]
[1738292965921,0.03862265,3236.6,3236.2,0.5575]
[1738292966821,3.79431706,3236.7,3236.2,0.5575]
[1738292971090,0.10395989,3236.6,3236.2,0.5575]
[1738292972650,0.10395989,3236.6,3236.4,0.5575]
[1738292973031,3.08942,3236.9,3236.4,0.5575]
[1738292973247,0.10395989,3236.5,3236.4,0.5575]
[1738292973453,3.707283,3236.9,3236.4,0.5575]
[1738292973961,0.10395989,3236.8,3236.4,0.5575]
[1738292974152,0.10395989,3236.8,3236.7,3.64706]
[1738292974338,0.10395989,3236.8,3236.7,4.45256]
[1738292974537,0.7789,3237.9,3237.1,3.08916]
[1738292974733,3.86733,3237.9,3237.3,3.08898]
[1738292975058,3.08815,3238.2,3237.6,3.08866]
[1738292975059,0.10015343,3237.8,3237.6,3.08866]
[1738292975241,0.10015343,3237.8,3237.7,3.63861]
[1738292975422,1.2359,3238.8,3237.5,3.09625]
[1738292975423,3.85136,3238.6,3238.0,0.813]
[1738292975611,3.08761,3238.8,3238.1,0.0075]
[1738292975962,3.08767,3238.7,3238.1,0.0075]
[1738292976255,0.308767,3238.6,3238.1,0.0075]
[1738292976455,1.0,3238.2,3238.1,0.015]
[1738292976618,1.0,3238.2,3238.1,3.10323]
[1738292977111,1.0,3238.2,3238.1,4.41113]
[1738292978662,1.0,3238.2,3238.1,7.41113]
[1738292984760,1.0,3238.2,3238.1,3.86113]
[1738292984967,0.99875924,3238.2,3238.1,3.86113]
[1738292985467,0.99875924,3238.2,3238.1,4.41113]
[1738292989064,0.99875924,3238.2,3238.1,0.71536247]
[1738292989260,0.99875924,3238.2,3238.1,3.80359247]
[1738292991288,0.99875924,3238.2,3238.1,3.81859247]
[1738292994399,0.99875924,3238.2,3238.1,6.81859247]
[1738292996756,0.99875924,3238.2,3238.1,0.015]
[1738292997093,0.99875924,3238.2,3237.6,3.08868]
[1738292997289,1.09712376,3238.2,3237.7,0.015]
[1738292997492,0.7927,3238.1,3237.7,0.015]
[1738292997797,0.09835722,3238.0,3237.7,0.015]
[1738292998009,0.09835722,3238.0,3237.6,0.015]
[1738292998307,0.8255,3237.6,3237.0,3.08924]
[1738292998657,0.09792631,3237.5,3237.1,0.015]
[1738292998862,0.09792631,3237.5,3237.1,3.10411]
[1738292999936,0.8255,3237.9,3237.4,0.015]
[1738293000212,0.09765599,3237.8,3237.4,3.10382]
[1738293000510,0.09765599,3237.8,3237.4,0.015]
[1738293000694,0.09765599,3237.8,3237.7,3.10361]
[1738293000873,0.99875924,3238.2,3237.8,0.0075]
[1738293001279,0.0974843,3238.1,3237.8,0.0075]
[1738293001477,0.0974843,3238.1,3237.8,0.015]
[1738293001683,0.32826113,3238.1,3237.6,0.015]
[1738293002005,0.0974843,3238.1,3237.6,0.015]
[1738293002159,0.0974843,3238.1,3237.3,0.55]
[1738293002160,0.0974843,3238.1,3237.4,0.0075]
[1738293002373,0.0974843,3238.1,3238.0,0.015]
[1738293002578,0.99875924,3238.2,3238.0,0.015]
[1738293002780,0.0974843,3238.1,3237.7,3.10359]
[1738293003013,3.08836,3238.0,3237.7,0.0075]
[1738293003430,0.0974843,3237.9,3237.5,0.015]
[1738293003926,0.19217435,3238.1,3237.7,0.0075]
[1738293004076,0.0974843,3238.0,3237.7,0.0075]
[1738293004591,4.08697924,3238.2,3237.7,0.0075]
[1738293004788,0.0974843,3237.9,3237.7,0.0075]
[1738293005103,0.0974843,3237.8,3237.7,0.0075]
[1738293005416,0.99875924,3238.2,3237.7,0.015]
[1738293005617,0.0974843,3237.8,3237.7,0.015]
[1738293005914,0.99875924,3238.2,3237.9,0.015]
[1738293006318,0.99875924,3238.2,3237.9,3.10341]
[1738293006483,0.99875924,3238.2,3237.9,2.95341]
[1738293006682,0.99875924,3238.2,3237.7,3.63855]
[1738293006884,0.99875924,3238.2,3237.8,3.08851]
[1738293007808,0.99875924,3238.2,3237.9,3.08841]
[1738293008522,0.99875924,3238.2,3237.9,0.015]
[1738293009427,0.99875924,3238.2,3237.8,0.015]
[1738293009723,3.08827,3238.1,3237.6,0.015]
[1738293009946,0.99875924,3238.2,3238.1,3.09573]
[1738293010153,0.99875924,3238.2,3238.1,0.015]
[1738293010632,0.99875924,3238.2,3238.1,3.10323]
[1738293013746,1.09665635,3238.2,3238.1,3.10323]
[1738293014539,1.09665635,3238.2,3238.1,3.65323]
[1738293014856,0.99875924,3238.2,3238.1,7.23833]
[1738293015410,0.99875924,3238.2,3238.1,9.23833]
[1738293016018,0.99875924,3238.2,3238.1,9.33833]
[1738293016426,9.24e-06,3238.2,3238.1,9.33833]
[1738293016654,9.24e-06,3238.2,3238.1,9.53833]
[1738293017527,0.8307,3239.7,3239.3,0.015]
[1738293017850,0.09835722,3239.6,3239.5,0.015]
[1738293018228,0.7566,3240.0,3239.6,3.08679]
[1738293018664,0.09852515,3239.9,3239.7,0.0075]
[1738293018842,0.09852515,3239.9,3239.7,0.015]
[1738293019458,0.09852515,3239.9,3239.7,3.10167]
[1738293019626,0.09852515,3239.9,3239.7,0.015]
[1738293019824,0.09852515,3239.9,3239.8,3.10161]
[1738293020030,0.7884,3240.3,3239.9,0.565]
[1738293020360,0.48308621,3244.1,3239.9,0.565]
[1738293020361,0.8167,3241.1,3240.6,0.0075]
[1738293020652,1.234926,3240.9,3240.8,0.0075]
[1738293020824,0.8167,3241.5,3241.0,0.0075]
[1738293021022,0.8167,3241.5,3241.1,0.0075]
[1738293021250,0.8167,3241.5,3241.1,3.09283]
[1738293022120,0.8167,3241.5,3240.3,3.08604]
[1738293022121,3.08508,3241.4,3240.3,3.08604]
[1738293022448,3.08557,3240.9,3240.2,3.0]
[1738293022654,3.08557,3240.9,3240.2,0.015]
[1738293023232,3.08567,3240.8,3240.2,0.015]
[1738293023428,3.08606,3240.4,3239.6,3.08674]
[1738293023773,0.7575,3240.5,3239.8,3.08652]
[1738293024080,0.7575,3240.5,3239.9,3.09398]
[1738293024845,0.7822,3240.9,3240.3,3.08611]
[1738293025046,0.7822,3240.9,3240.3,3.08606]
[1738293025269,0.7822,3240.9,3240.1,3.08624]
[1738293025476,0.7822,3240.9,3240.2,0.015]
[1738293025632,0.09923749,3240.8,3240.2,0.015]
[1738293025827,0.09923749,3240.8,3240.5,0.015]
[1738293026174,0.09923749,3240.7,3240.5,0.015]
[1738293026533,0.7822,3240.9,3240.5,0.015]
[1738293026844,0.09923749,3240.8,3240.5,0.015]
[1738293027242,0.09923749,3240.8,3240.3,0.0075]
[1738293027443,0.09923749,3240.8,3239.9,6.08651]
[1738293027444,3.08587,3240.6,3239.9,6.08651]
[1738293027651,3.71294675,3240.6,3239.9,6.08651]
[1738293027838,0.09923749,3240.5,3240.0,0.015]
[1738293028730,0.09923749,3240.5,3240.1,3.0863]
[1738293028881,0.09923749,3240.5,3240.2,0.015]
[1738293029061,0.09923749,3240.5,3240.1,3.0863]
[1738293029062,0.09923749,3240.5,3240.4,3.10103]
[1738293029471,0.03856911,3240.8,3239.9,3.08644]
[1738293029638,0.099026,3240.5,3239.9,3.08644]
[1738293029978,0.09906978,3240.4,3240.0,0.015]
[1738293030483,0.09906978,3240.4,3239.9,0.015]
[1738293030635,0.09906978,3240.4,3240.1,0.015]
[1738293030965,0.09906978,3240.3,3240.1,3.1013]
[1738293031163,3.08574,3240.8,3240.1,3.1013]
[1738293031347,0.48586378,3240.7,3240.1,3.1013]
[1738293031553,3.57161378,3240.7,3240.1,3.1013]
[1738293032080,3.57161378,3240.7,3239.7,3.08664]
[1738293032081,3.08606,3240.4,3239.7,3.08664]
[1738293032242,0.7944,3240.5,3239.7,3.08664]
[1738293032447,0.09909167,3240.3,3239.8,0.015]
[1738293032791,4.31696338,3240.5,3239.8,3.10155]
[1738293032965,0.13815985,3240.2,3239.8,3.10155]
[1738293033161,4.31696338,3240.5,3239.6,6.08678]
[1738293033483,3.08614,3240.3,3239.7,0.015]
[1738293033699,0.31247156,3240.2,3239.7,3.10168]
[1738293033847,0.45050011,3240.2,3239.7,3.10168]
[1738293034585,0.45050011,3240.2,3239.7,0.015]
[1738293035200,0.45050011,3240.2,3239.7,3.1017]
[1738293036006,0.13802855,3240.2,3239.7,3.1017]
[1738293036304,3.08618,3240.3,3239.7,3.1017]
[1738293036515,3.22431112,3240.1,3239.4,3.0]
[1738293036799,4.08999288,3240.0,3239.4,0.015]
[1738293037000,3.80417229,3239.9,3239.1,6.08722]
[1738293037202,3.80417229,3239.9,3237.7,5.37]
[1738293037203,0.827,3239.7,3238.8,3.08755]
[1738293037505,0.827,3239.7,3238.9,3.08739]
[1738293037506,3.08687,3239.6,3238.9,3.08739]
[1738293037711,3.94236202,3239.6,3238.9,3.08739]
[1738293038086,3.0869,3239.5,3238.9,3.08739]
[1738293038405,3.08701,3239.4,3238.8,0.015]
[1738293038564,3.22479778,3239.4,3238.8,0.015]
[1738293038765,0.827,3239.3,3238.8,0.015]
[1738293039076,0.13765643,3239.2,3238.8,0.015]
[1738293039289,0.13765643,3239.2,3238.8,3.10254]
[1738293039489,0.827,3239.3,3238.8,3.10254]
[1738293039662,0.13765643,3239.1,3238.8,3.10254]
[1738293039863,0.827,3239.3,3238.8,0.015]
[1738293040074,0.13765643,3239.0,3238.8,0.015]
[1738293040269,0.3914,3239.2,3238.8,0.015]
[1738293040494,0.13765643,3238.9,3238.8,0.015]
[1738293040694,3.95273951,3239.3,3238.8,0.015]
[1738293040887,0.13765643,3238.9,3238.8,0.015]
[1738293041083,3.08725,3239.2,3238.5,3.08784]
[1738293041397,3.44495386,3239.1,3238.5,3.08784]
[1738293041594,3.58239136,3239.1,3238.5,3.08784]
[1738293042307,3.58239136,3239.1,3238.6,0.015]
[1738293042776,0.49511136,3239.1,3238.6,0.015]
[1738293042977,0.49511136,3239.1,3238.6,3.08774]
[1738293043590,3.58248136,3239.1,3238.4,0.015]
[1738293043913,0.827,3238.8,3238.4,0.015]
[1738293044412,0.13727327,3238.7,3238.4,0.015]
[1738293044911,0.827,3238.8,3238.4,0.015]
[1738293045376,0.13712363,3238.7,3238.4,0.015]
[1738293045716,0.827,3238.8,3238.5,3.08784]
[1738293045926,0.13712363,3238.6,3238.5,3.09534]
[1738293046220,0.13708713,3238.6,3238.5,3.09534]
[1738293046402,0.13708713,3238.6,3238.5,0.0075]
[1738293046608,0.827,3238.8,3238.5,0.0075]
[1738293046777,0.13708713,3238.6,3238.5,0.0075]
[1738293046972,0.827,3238.8,3238.5,0.0075]
[1738293047174,0.13708713,3238.7,3238.5,0.0075]
[1738293047418,0.827,3238.8,3238.5,0.0075]
[1738293047650,0.13708713,3238.6,3238.2,3.0881]
[1738293047874,0.827,3238.8,3238.2,3.0881]
[1738293048025,0.13708713,3238.5,3238.3,0.015]
[1738293048208,0.827,3238.8,3238.3,3.10303]
[1738293048408,0.13708713,3238.4,3238.3,0.0075]